Cogmind - Beta 12 @@@ ROGUE MODE // 2023.04.30 @ 14:52:13 Player: Exp. Geonium Core Result: Destroyed by as-44868 with Assembled Blade Performance ------------- Evolutions (0) 0 Regions Visited (2) 400 Robots Destroyed (13) 65 Value Destroyed (308) 308 Prototype IDs (0) 0 Alien Tech Used (0) 0 Bonus (0) 0 TOTAL SCORE: 773 Bonus ------- None Cogmind --------- Core Integrity 0/250 Matter 288/300 Energy 250/250 System Corruption 2% Temperature Warm (180) Movement Treading (320) Ox2 Location -10/Mines Parts ------- > --- POWER (1) -------- Ion Engine > --- PROPULSION (2) --- Light Treads Compact Wheel > --- UTILITY (2) ------ High-capacity Storage Unit Targeting Computer > --- WEAPON (2) ------- Light Assault Rifle Light Assault Rifle > --- INVENTORY (20) --- Light Ion Engine Light Treads Light Treads Light Treads Light Treads Aluminum Leg Aluminum Leg Heat Sink High-capacity Storage Unit Huge Storage Unit High-capacity Matter Pod (96) Small Laser Light Assault Rifle Light Assault Rifle Datajack Peak State ------------ > --- POWER ------------ Ion Engine > --- PROPULSION ------- Light Treads Wheel > --- UTILITY ---------- Heat Sink High-capacity Storage Unit > --- WEAPON ----------- Small Laser Light Assault Rifle > --- INVENTORY -------- Ion Engine Light Treads Light Treads Aluminum Leg Aluminum Leg Compact Wheel Light Assault Rifle Light Assault Rifle Light Assault Rifle Datajack [Rating: 8] Favorites ----------- Power Ion Engine Engine Ion Engine Propulsion Light Treads Treads Light Treads Leg Aluminum Leg Wheel Wheel Utility High-capacity Storage Unit Device Heat Sink Storage High-capacity Storage Unit Processor Targeting Computer Weapon Light Assault Rifle Energy Gun Small Laser Ballistic Gun Light Assault Rifle Build | -11 -10 -10 ------- Run | Jun Mat Min Slots Evolved . | . . . Power . | . . . Propulsion . | . . . Utility . | . . . Weapon . | . . . Parts Attached 8 | . 7 1 Power 1 | . 1 . Engine 1 | . 1 . Core . | . . . Reactor . | . . . Propulsion 3 | . 2 1 Treads 1 | . 1 . Leg . | . . . Wheel 2 | . 1 1 Hover . | . . . Flight . | . . . Utility 3 | . 3 . Device 1 | . 1 . Storage 1 | . 1 . Processor 1 | . 1 . Hackware . | . . . Protection . | . . . Artifact . | . . . Weapon 1 | . 1 . Energy Gun . | . . . Energy Cannon . | . . . Ballistic Gun 1 | . 1 . Ballistic Cannon . | . . . Launcher . | . . . Special Weapon . | . . . Impact Weapon . | . . . Slashing Weapon . | . . . Piercing Weapon . | . . . Special Melee Weapon . | . . . Unidentified Prototypes . | . . . Parts Lost 2 | . 1 1 Power 1 | . 1 . Propulsion 1 | . . 1 Utility . | . . . Weapon . | . . . Highest Loss Streak 1 | . 1 1 To Critical Strikes . | . . . Average Slot Usage (%) 96 | . 96 100 Engine 13 | . 13 14 Treads 11 | . 11 14 Leg 4 | . 5 . Wheel 11 | . 11 14 Device 9 | . 10 . Storage 14 | . 14 14 Processor 2 | . . 14 Energy Gun 11 | . 13 . Ballistic Gun 16 | . 14 28 Naked Turns . | . . . Heaviest Build 48 | 12 48 47 Greatest Support 20 | 20 20 16 Greatest Overweight (x) 4 | . 4 2 Average Overweight (x) 3 | . 3 2 Largest Inventory Capacity 20 | . 20 20 Average Capacity 17 | . 17 20 Most Carried 16 | . 16 16 Average Carried 13 | . 12 15 Final Capacity 20 | 8 20 20 Final Carried 16 | 6 16 15 Class Distribution -------------------- 100% | Mutant Dominant Class ---------------- Mutant | -10/Materials Mutant | -10/Mines Resources | -11 -10 -10 ----------- Run | Jun Mat Min Matter Collected 418 | 200 134 84 Remotely . | . . . Salvage Created 457 | . 373 84 Parts 32 | . 27 5 Haulers Intercepted 2 | . 2 . Recyclers Shooed 1 | . 1 . Parts Field Recycled . | . . . Retrieved Matter . | . . . Parts Self-Destructed . | . . . Prevented . | . . . Kills | -11 -10 -10 ------- Run | Jun Mat Min Combat Hostiles Destroyed 11 | . 9 2 Guns 11 | . 9 2 Classes Destroyed 3 | . 3 . Hauler 2 | . 2 . Swarmer 4 | . 4 . Grunt 7 | . 5 2 Best Kill Streak 6 | . 6 2 Combat Bots Only 5 | . 5 2 Max Kills in Single Turn 1 | . 1 1 Gunslinging . | . . . Exploded . | . . . Melee . | . . . Uniques/NPCs Destroyed . | . . . Combat | -11 -10 -10 -------- Run | Jun Mat Min Damage Taken 830 | . 564 266 Core 258 | . 170 88 Absorbed by Shields . | . . . Core Remaining (%) 100 | 100 . . Volleys Fired 50 | . 40 10 Largest 2 | . 2 2 Hottest 60 | . 60 40 Shots Fired 100 | . 80 20 Gun 100 | . 80 20 Cannon . | . . . Launcher . | . . . Special . | . . . Kinetic 60 | . 40 20 Thermal 40 | . 40 . Explosive . | . . . Electromagnetic . | . . . Robot Hit Streak 6 | . 6 6 Robot Miss Streak 4 | . 4 2 Penetration Max . | . . . Secondary Targets 2 | . 1 1 Max Gunslinging Chain 1 | . 1 1 Shots Hit Robots 60 | . 45 15 Core Hits 30 | . 22 8 Critical Kills . | . . . Critical Parts Destroyed . | . . . Critical Strikes . | . . . Melee Attacks . | . . . Impact . | . . . Slashing . | . . . Piercing . | . . . Sneak Attacks . | . . . Combat Hostiles . | . . . Follow-up Attacks . | . . . Damage Inflicted 595 | . 466 129 Guns 591 | . 462 129 Cannons . | . . . Explosions . | . . . Melee . | . . . Ramming 4 | . 4 . Kinetic 310 | . 181 129 Thermal 281 | . 281 . Explosive . | . . . Electromagnetic . | . . . Impact . | . . . Slashing . | . . . Piercing . | . . . Highest Corruption 2 | . 2 2 Average Corruption 2 | . 2 2 Corruption Purged . | . . . Corruption Blocked . | . . . Effects 2 | . . 2 Matter Fused 1 | . . 1 Heat Flow Errors 1 | . . 1 Overload Shots . | . . . Overflow Damage . | . . . Projectiles . | . . . Explosions . | . . . Melee . | . . . Knockbacks . | . . . Impact . | . . . Kinetic . | . . . Secondary . | . . . Self-Inflicted Damage 2 | . 2 . Shots . | . . . Rammed 1 | . 1 . Targets Rammed 1 | . 1 . Kicked . | . . . Crushed . | . . . Highest Temperature 164 | . 164 37 Average Temperature 77 | . 90 21 Received Heat Transfer 309 | . 222 87 Siege Activations . | . . . Robots Corrupted . | . . . Combat Hostiles . | . . . Parts Fried . | . . . Impact Corruptions . | . . . Robots Melted . | . . . Combat Hostiles . | . . . Parts Melted . | . . . Heat Transferred 625 | . 625 . Parts Sabotaged . | . . . Parts Stolen . | . . . Parts Stripped . | . . . Power Chain Reactions . | . . . Missiles Intercepted . | . . . Alert | -11 -10 -10 ------- Run | Jun Mat Min Peak Influence 291 | . 291 86 Initial 46 | . . 46 Average 134 | . 141 79 Maximum Alert Level 1 | . 1 . Low Security (%) 77 | . 74 100 Level 1 22 | . 25 . Level 2 . | . . . Level 3 . | . . . Level 4 . | . . . Level 5 . | . . . High Security . | . . . Max Security . | . . . Squads Dispatched 1 | . 1 . Investigation 1 | . 1 . Extermination . | . . . Reinforcement . | . . . Assault . | . . . Garrison . | . . . Intercept . | . . . Searches Triggered . | . . . Construction Impeded . | . . . Haulers Reinforced . | . . . Active Scanning Responses . | . . . Cargo Convoy Interrupts . | . . . Stealth | -11 -10 -10 --------- Run | Jun Mat Min Distress Signals 1 | . 1 . Communications Jammed . | . . . Distress Signals . | . . . Times Spotted 23 | . 19 4 Peak Tracking Total 6 | . 6 2 Tactical Retreats 1 | . 1 . Traps | -11 -10 -10 ------- Run | Jun Mat Min Traps Triggered 1 | . 1 . Indirectly . | . . . Trap Hack Attempts . | . . . Triggered . | . . . Disarmed . | . . . Reprogrammed . | . . . Reused . | . . . Traps Extracted . | . . . Installed . | . . . Triggered . | . . . Machines | -11 -10 -10 ---------- Run | Jun Mat Min Machines Disabled . | . . . Max in Single Turn . | . . . Machines Repaired . | . . . Machines Sabotaged . | . . . Overloaded Fab Kills . | . . . Hacking | -11 -10 -10 --------- Run | Jun Mat Min Machines Accessed 3 | . 3 . Terminals 2 | . 2 . Fabricators . | . . . Repair Stations . | . . . Recycling Units 1 | . 1 . Scanalyzers . | . . . Garrison Access . | . . . Total Hacks 8 | . 8 . Successful 3 | . 3 . Failed 5 | . 5 . Catastrophic 1 | . 1 . Database Lockouts . | . . . Manual 6 | . 6 . Terminals 5 | . 5 . Fabricators . | . . . Repair Stations . | . . . Recycling Units 3 | . 3 . Scanalyzers . | . . . Garrison Access . | . . . Terminal Hacks 1 | . 1 . Robot Schematic 1 | . 1 . Fabricator Hacks . | . . . Repair Station Hacks . | . . . Recycling Unit Hacks 1 | . 1 . Retrieve Components 1 | . 1 . Scanalyzer . | . . . Garrison Access Hacks . | . . . Unauthorized Hacks 1 | . 1 . Terminals . | . . . Fabricators . | . . . Repair Stations . | . . . Recycling Units 1 | . 1 . Tunnel 1 | . 1 . Scanalyzers . | . . . Garrison Access . | . . . Data Cores Recovered . | . . . Used . | . . . Hacking Detections 3 | . 3 . Full Trace Events 1 | . 1 . Feedback Events . | . . . Feedback Blocked . | . . . Robot Schematics Acquired 1 | . 1 . Robots Built . | . . . Authchips . | . . . Time . | . . . Total Robot Build Rating . | . . . Part Schematics Acquired . | . . . Parts Built . | . . . Authchips . | . . . Time . | . . . Total Part Build Rating . | . . . Parts Repaired . | . . . Time . | . . . Parts Recycled . | . . . Recycled Matter . | . . . Retrieved Matter . | . . . Retrieved Components 5 | . 5 . Parts Scanalyzed . | . . . Part Schematics Acquired . | . . . Parts Damaged . | . . . Bothacking | -11 -10 -10 ------------ Run | Jun Mat Min Used RIF Installer . | . . . Robots Hacked . | . . . Non-combat . | . . . Combat . | . . . Robot Hacks Applied . | . . . Relay Couplers Released . | . . . Fabnet Peak Effective % . | . . . Robots Rewired . | . . . Allies Hacked . | . . . Hacks Repelled . | . . . Allies | -11 -10 -10 -------- Run | Jun Mat Min Total Allies . | . . . Largest Group . | . . . Highest-Rated Group . | . . . Highest-Rated Ally . | . . . Total Orders . | . . . Ally Attacks . | . . . Total Damage . | . . . Kills . | . . . Allies Corrupted . | . . . Allies Melted . | . . . Intel | -11 -10 -10 ------- Run | Jun Mat Min Robot Analysis Total . | . . . Derelict Logs Recovered . | . . . Drone Launches . | . . . Drone Recoveries . | . . . Exploration | -11 -10 -10 ------------- Run | Jun Mat Min Turns Passed 679 | . 597 82 Spaces Moved 365 | 1 329 35 Core . | . . . Treads . | . . . Legs 51 | 1 50 . Wheels 314 | . 279 35 Hover . | . . . Flight . | . . . Fastest Speed 120 | 120 120 130 Average Speed 136 | 120 137 130 Slowest Speed 260 | 120 260 130 Overloaded Moves . | . . . Propulsion Burnouts . | . . . Robots Hopped . | . . . Cave-ins Triggered . | . . . Exploration Rate (%) 25 | 1 67 7 Regions Visited 2 Branch Regions 1 Pre-discovered Areas 1 | . 1 . Known Exits Taken . | . . . Unknown Exits Taken 2 | 1 1 . Scrap Searched . | . . . Spaces Dug . | . . . Terrain Destroyed . | . . . Melee . | . . . Projectile . | . . . AOE . | . . . Terrain Rammed . | . . . Walls Destroyed . | . . . Machines Disabled . | . . . Actions | -11 -10 -10 --------- Run | Jun Mat Min Total 455 | . 400 55 Wait 20 | . 11 9 Move 363 | . 328 35 Hop . | . . . Pick Up 11 | . 11 . Fast Attach 3 | . 3 . Attach 2 | . 1 1 Detach . | . . . Swap 3 | . 3 . Drop 2 | . 2 . Fire 50 | . 40 10 Melee . | . . . Ram 1 | . 1 . Kick . | . . . Crush . | . . . Escape Stasis . | . . . Rewire . | . . . Trap . | . . . Miscellaneous . | . . . Route ------- -11/Junkyard -10/Materials (discovered 4 exits: [*Mat x3] / [*Min]) -10/Mines History --------- Turn | Location | Event 1 | -11/Junkyard | Discovered new exit (range 0) 1 | -11/Junkyard | Entered Materials 174 | -10/Materials | Core integrity fell below 50% 263 | -10/Materials | Discovered new exit (range 14) 307 | -10/Materials | Build established: Mutant 407 | -10/Materials | Discovered new exit (range 4) 452 | -10/Materials | Discovered new exit (range 16) 543 | -10/Materials | Discovered new exit (range 16) 598 | -10/Materials | Entered Mines 633 | -10/Mines | Assembled infested the area 676 | -10/Mines | Core integrity fell below 20% 680 | -10/Mines | Destroyed by as-44868 with Assembled Blade Last Messages --------------- 00552_ Triggered Shock Trap. 00552_ The floor emits a surge of raw power. 00552_ System corrupted (+2). 00567_ U-05 Engineer lays Concrete. 00580_ Dropped Heat Sink. 00580_ Acquired Targeting Computer. LOCATION=UNKNOWN GOAL=ESCAPE Something is scanning the area. 00599_ Laser Drill disabled. 00606_ G-34 Mercenary destroyed. 00606_ Switching to secondary target: G-47 Trooper. 00616_ Wheel destroyed. 00617_ G-47 Trooper destroyed. 00624_ Acquired 44 matter. 00627_ Acquired 40 matter. 00633_ ALERT: Infestation in the mines, dispatching Demolisher response squad. 00643_ System corrupted: Matter fused (-8). 00680_ System corrupted: Heat flow error (+180). Map ----- +----------------------------------------------------+ | | | | | | | | | | | | | | | | | | | | | ?????????????????????????????????????????????? | | ?????????????????????????????????????????????? | | ?????????????????????????????????????????????? | | ?????????????????????????????????????????????? | | ?????????????????????????????????????????????? | | ?????????????????????????????????????????????? | | ??????????????????????##?????????????????????? | | ?????????????????????# ?????????????????????? | | ???????????##????????# #?????????????????????? | | ???????????# ???????? #?????????????????????? | | ???????????# #???????# #?????????????????????? | | ???????????# #???????# #?????????????????????? | | ????######## #######?# #?????????????????????? | | ????# != #?# #?????????????????????? | | ????# """ """ """ ###a#?????????????????????? | | ????# """ """=""" @a#?????????????????????? | | ????# """ """ """ #####?????????????????????? | | ????# != #?????????????????????????? | | ????# """ "" #?????????????????????????? | | ????# """ """ #?????????????????????????? | | ????# """ """ #?????????????????????????? | | ????# #?????????????????????????? | | ????################?????????????????????????? | | ?????????????????????????????????????????????? | | ?????????????????????????????????????????????? | | ?????????????????????????????????????????????? | | ?????????????????????????????????????????????? | | ?????????????????????????????????????????????? | | ?????????????????????????????????????????????? | | ?????????????????????????????????????????????? | | ?????????????????????????????????????????????? | | ?????????????????????????????????????????????? | | ?????????????????????????????????????????????? | | ?????????????????????????????????????????????? | | ?????????????????????????????????????????????? | | ?????????????????????????????????????????????? | | ?????????????????????????????????????????????? | | ?????????????????????????????????????????????? | | ?????????????????????????????????????????????? | | ?????????????????????????????????????????????? | +----------------------------------------------------+ Best States ------------- Heat Dissipation 35 Energy Generation 10 Energy Capacity 250 Matter Stores 300 Matter Capacity 300 Sight Range 16 Terrain Scan Density 10 Evasion (%) 55 Targeting Accuracy 5 Recoil Reduction 1 Item Schematics ----------------- None Robot Schematics ------------------ M-13 Machinist | -10/Materials | Hacked Fabricated ------------ Nothing Alien Tech Used ----------------- None Achievements -------------- None Challenges ------------ None Game ------ Seed WardroneTiamatMinigun Manual? 0 Play Time 00:05:23 Cumulative 427.1 hours Start 2023.04.30 @ 14:46:23 End 2023.04.30 @ 14:52:13 Sessions 1 Manual Loads 0 Difficulty Rogue Special Mode None Game No. 466 Rogue 466 Adventurer 0 Explorer 0 Win Type - Total 12 Types 8/0/3/1/0/0/0/0/0 Lore% 82 Gallery% 90 Achievement% 80 Wizard Run 0 Options --------- ASCII 0 Keyboard 0 Movement Mouse Keybinds 0 Fullscreen 1 Font 18/Terminus Map View 76x50 Tactical HUD 1 Map Filters NONE Filters NONE Steam 1 RUN: 064cef1b-4830-46dd-a5f5-26bf9573544f